[Event "Early-Titled-Tuesday-Blitz-September-26-2023"]
[Site "Chess.com"]
[Date "2023.09.26"]
[Round "9"]
[White "Chessbard1972"]
[Black "whiteglovethief"]
[Result "1-0"]
[WhiteElo "2396"]
[BlackElo "2488"]
[TimeControl "180+1"]
[EndTime "9:43:19 PDT"]
[Termination "Chessbard1972 won by resignation"]

1. e4 {[%clk 0:03:00.9]} 1... e6 {[%clk 0:03:00.4]} 2. d4 {[%clk 0:03:00.2]}
2... d5 {[%clk 0:03:01.3]} 3. e5 {[%clk 0:03:00.4]} 3... c5 {[%clk 0:03:01.9]}
4. c3 {[%clk 0:03:00.5]} 4... Nc6 {[%clk 0:03:02.8]} 5. Nf3 {[%clk 0:03:00.6]}
5... Bd7 {[%clk 0:03:03.7]} 6. a3 {[%clk 0:02:59.4]} 6... c4 {[%clk 0:03:03.2]}
7. b4 {[%clk 0:02:56.3]} 7... a6 {[%clk 0:02:58.8]} 8. a4 {[%clk 0:02:55.3]}
8... b6 {[%clk 0:02:58]} 9. Be2 {[%clk 0:02:52.6]} 9... Nce7 {[%clk 0:02:58.2]}
10. O-O {[%clk 0:02:51.5]} 10... Qc7 {[%clk 0:02:58.8]} 11. Nh4 {[%clk
0:02:37.5]} 11... Ng6 {[%clk 0:02:58.4]} 12. Nf3 {[%clk 0:02:33.3]} 12... f5
{[%clk 0:02:56.1]} 13. exf6 {[%clk 0:02:32]} 13... gxf6 {[%clk 0:02:56]} 14. h4
{[%clk 0:02:26.8]} 14... Bd6 {[%clk 0:02:55.8]} 15. h5 {[%clk 0:02:21.8]} 15...
Nf4 {[%clk 0:02:55.7]} 16. Bxf4 {[%clk 0:02:20.9]} 16... Bxf4 {[%clk 0:02:56.6]}
17. Nbd2 {[%clk 0:02:17.7]} 17... Ne7 {[%clk 0:02:56.4]} 18. Nh4 {[%clk
0:02:17.1]} 18... Rg8 {[%clk 0:02:54.4]} 19. Bf3 {[%clk 0:02:01.8]} 19... Bg5
{[%clk 0:02:51.9]} 20. h6 {[%clk 0:01:42.7]} 20... Bxh4 {[%clk 0:02:50.5]} 21.
Bh5+ {[%clk 0:01:42.5]} 21... Ng6 {[%clk 0:02:48.1]} 22. Qg4 {[%clk 0:01:39.7]}
22... Bg5 {[%clk 0:02:41.7]} 23. f4 {[%clk 0:01:36.5]} 23... e5 {[%clk
0:02:41.7]} 24. f5 {[%clk 0:01:29.7]} 24... Bxd2 {[%clk 0:02:36.8]} 25. Bxg6+
{[%clk 0:01:28.2]} 25... hxg6 {[%clk 0:02:36.3]} 26. h7 {[%clk 0:01:28.5]} 26...
Be3+ {[%clk 0:02:32.8]} 27. Kh1 {[%clk 0:01:24.4]} 27... Rh8 {[%clk 0:02:28.7]}
28. Qxg6+ {[%clk 0:01:24.1]} 28... Ke7 {[%clk 0:02:21.7]} 29. Qg7+ {[%clk
0:01:23.8]} 29... Kd8 {[%clk 0:02:05]} 30. Qxh8+ {[%clk 0:01:23.4]} 30... Be8
{[%clk 0:02:03]} 31. Qxf6+ {[%clk 0:01:22.9]} 31... Kc8 {[%clk 0:01:50.9]} 32.
h8=Q {[%clk 0:01:18.1]} 32... Kb7 {[%clk 0:01:51.8]} 33. Qhg7 {[%clk 0:01:16.2]}
33... Bd7 {[%clk 0:01:51.5]} 34. Qxe5 {[%clk 0:01:10.5]} 34... Qxe5 {[%clk
0:01:47.3]} 35. dxe5 {[%clk 0:01:07.5]} 35... Kc6 {[%clk 0:01:44.5]} 36. g4
{[%clk 0:01:05]} 36... d4 {[%clk 0:01:43.7]} 37. e6 {[%clk 0:01:01.1]} 37... Bc8
{[%clk 0:01:42.3]} 38. cxd4 {[%clk 0:00:58.7]} 38... Bb7 {[%clk 0:01:40]} 39.
d5+ {[%clk 0:00:57.4]} 39... Kd6 {[%clk 0:01:37.7]} 40. Qxb7 {[%clk 0:00:56.7]}
1-0

[Event "Early-Titled-Tuesday-Blitz-September-26-2023"]
[Site "Chess.com"]
[Date "2023.09.26"]
[Round "9"]
[White "OparinGrigoriy"]
[Black "Keeper0416"]
[Result "1-0"]
[WhiteElo "2950"]
[BlackElo "2583"]
[TimeControl "180+1"]
[EndTime "9:43:26 PDT"]
[Termination "OparinGrigoriy won by resignation"]

1. g3 {[%clk 0:03:00.9]} 1... d5 {[%clk 0:03:00.3]} 2. Bg2 {[%clk 0:03:01.8]}
2... c6 {[%clk 0:03:00.8]} 3. Nf3 {[%clk 0:03:01.5]} 3... Nf6 {[%clk 0:03:01.4]}
4. c4 {[%clk 0:03:02.1]} 4... Bf5 {[%clk 0:02:51.8]} 5. Qb3 {[%clk 0:03:01.8]}
5... Qb6 {[%clk 0:02:51.7]} 6. d3 {[%clk 0:02:58.8]} 6... e6 {[%clk 0:02:44.1]}
7. Be3 {[%clk 0:02:58.9]} 7... Qb4+ {[%clk 0:02:30.4]} 8. Nc3 {[%clk 0:02:48.8]}
8... Na6 {[%clk 0:02:20.8]} 9. O-O {[%clk 0:02:48.7]} 9... Be7 {[%clk 0:02:13]}
10. Nh4 {[%clk 0:02:39.4]} 10... dxc4 {[%clk 0:01:53.4]} 11. Qxc4 {[%clk
0:02:39.6]} 11... Qxc4 {[%clk 0:01:48.8]} 12. dxc4 {[%clk 0:02:40.5]} 12... Ng4
{[%clk 0:01:29.7]} 13. Nxf5 {[%clk 0:02:39.5]} 13... exf5 {[%clk 0:01:30.6]} 14.
Bf4 {[%clk 0:02:28.6]} 14... g5 {[%clk 0:01:22.6]} 15. Bc1 {[%clk 0:02:27.4]}
15... Nb4 {[%clk 0:00:41.2]} 16. a3 {[%clk 0:02:21.1]} 16... Nc2 {[%clk
0:00:40.4]} 17. Ra2 {[%clk 0:02:21.4]} 17... Nd4 {[%clk 0:00:39.3]} 18. b4
{[%clk 0:02:19.4]} 18... Ne5 {[%clk 0:00:37.5]} 19. Be3 {[%clk 0:02:15.8]} 19...
O-O-O {[%clk 0:00:36.6]} 20. b5 {[%clk 0:02:06.1]} 20... Nxc4 {[%clk 0:00:28.5]}
21. Bxd4 {[%clk 0:02:06.3]} 21... Rxd4 {[%clk 0:00:27.8]} 22. bxc6 {[%clk
0:02:07]} 22... bxc6 {[%clk 0:00:18.8]} 23. Bxc6 {[%clk 0:02:07.9]} 23... Rhd8
{[%clk 0:00:06]} 24. Rc1 {[%clk 0:02:05.9]} 24... Bxa3 {[%clk 0:00:04.8]} 25.
Rcc2 {[%clk 0:02:04.9]} 25... Bc5 {[%clk 0:00:04.1]} 26. Na4 {[%clk 0:01:59.3]}
26... Bb6 {[%clk 0:00:03.9]} 27. Bb5 {[%clk 0:01:59.4]} 27... Rd1+ {[%clk
0:00:01.6]} 28. Kg2 {[%clk 0:01:59.5]} 1-0

[Event "Early-Titled-Tuesday-Blitz-September-26-2023"]
[Site "Chess.com"]
[Date "2023.09.26"]
[Round "9"]
[White "luizzy"]
[Black "Cheer_Down"]
[Result "1-0"]
[WhiteElo "2627"]
[BlackElo "2467"]
[TimeControl "180+1"]
[EndTime "9:43:35 PDT"]
[Termination "luizzy won by resignation"]

1. b3 {[%clk 0:03:00.9]} 1... e5 {[%clk 0:02:59.5]} 2. Bb2 {[%clk 0:03:01.5]}
2... Nc6 {[%clk 0:02:59.4]} 3. e3 {[%clk 0:03:02.2]} 3... d5 {[%clk 0:02:58.6]}
4. Bb5 {[%clk 0:03:02.9]} 4... Ne7 {[%clk 0:02:57.7]} 5. Bxe5 {[%clk 0:03:02.2]}
5... a6 {[%clk 0:02:57.3]} 6. Bxc6+ {[%clk 0:03:02.8]} 6... Nxc6 {[%clk
0:02:57.5]} 7. Bg3 {[%clk 0:03:03.7]} 7... h5 {[%clk 0:02:56.2]} 8. h4 {[%clk
0:03:04.2]} 8... d4 {[%clk 0:02:41.4]} 9. Ne2 {[%clk 0:02:17.1]} 9... Be7 {[%clk
0:02:15.9]} 10. exd4 {[%clk 0:02:08.4]} 10... Nxd4 {[%clk 0:02:09.1]} 11. Nxd4
{[%clk 0:02:04.2]} 11... Qxd4 {[%clk 0:02:09.3]} 12. c3 {[%clk 0:01:52.3]} 12...
Qb6 {[%clk 0:01:58.6]} 13. O-O {[%clk 0:01:47.5]} 13... Be6 {[%clk 0:01:56.3]}
14. d4 {[%clk 0:01:42.2]} 14... O-O-O {[%clk 0:01:55.9]} 15. Nd2 {[%clk
0:01:42.3]} 15... g5 {[%clk 0:01:54.7]} 16. hxg5 {[%clk 0:01:39.5]} 16... h4
{[%clk 0:01:43.8]} 17. Be5 {[%clk 0:01:39]} 17... Rhg8 {[%clk 0:01:35.8]} 18.
Ne4 {[%clk 0:01:17.2]} 18... Qc6 {[%clk 0:01:34.2]} 19. Qe2 {[%clk 0:01:07.1]}
19... Bd5 {[%clk 0:01:27.6]} 20. f3 {[%clk 0:01:05.7]} 20... Bxe4 {[%clk
0:01:11.4]} 21. Qxe4 {[%clk 0:01:02.5]} 21... Qxc3 {[%clk 0:01:09.5]} 22. Rac1
{[%clk 0:01:01.9]} 1-0

[Event "Early-Titled-Tuesday-Blitz-September-26-2023"]
[Site "Chess.com"]
[Date "2023.09.26"]
[Round "9"]
[White "rose107"]
[Black "PawnEatingZombie"]
[Result "1/2-1/2"]
[WhiteElo "2084"]
[BlackElo "2143"]
[TimeControl "180+1"]
[EndTime "9:43:48 PDT"]
[Termination "Game drawn by repetition"]

1. e4 {[%clk 0:03:00.9]} 1... Nf6 {[%clk 0:02:58.9]} 2. e5 {[%clk 0:02:59.6]}
2... Nd5 {[%clk 0:02:59.3]} 3. c4 {[%clk 0:02:59.3]} 3... Nb6 {[%clk 0:02:59]}
4. d4 {[%clk 0:02:59.4]} 4... d6 {[%clk 0:02:59.1]} 5. exd6 {[%clk 0:02:57.9]}
5... exd6 {[%clk 0:03:00]} 6. Nf3 {[%clk 0:02:57.8]} 6... Be7 {[%clk 0:03:00.4]}
7. Bd3 {[%clk 0:02:57.7]} 7... Nc6 {[%clk 0:02:59.8]} 8. O-O {[%clk 0:02:57.5]}
8... O-O {[%clk 0:02:58.8]} 9. Nc3 {[%clk 0:02:57.1]} 9... Bf6 {[%clk
0:02:59.1]} 10. Be3 {[%clk 0:02:52.2]} 10... Bg4 {[%clk 0:02:58]} 11. h3 {[%clk
0:02:33.3]} 11... Bxf3 {[%clk 0:02:55.8]} 12. Qxf3 {[%clk 0:02:33.2]} 12... Nxd4
{[%clk 0:02:52.4]} 13. Bxd4 {[%clk 0:02:32.6]} 13... Bxd4 {[%clk 0:02:50]} 14.
Bxh7+ {[%clk 0:02:30]} 14... Kxh7 {[%clk 0:02:49.4]} 15. Qe4+ {[%clk 0:02:29.7]}
15... Kg8 {[%clk 0:02:49.2]} 16. Qxd4 {[%clk 0:02:30]} 16... Qg5 {[%clk
0:02:40.4]} 17. Ne4 {[%clk 0:02:23.1]} 17... Qe5 {[%clk 0:02:34.7]} 18. Qxe5
{[%clk 0:02:19.1]} 18... dxe5 {[%clk 0:02:34.5]} 19. Rac1 {[%clk 0:02:20]} 19...
Nd7 {[%clk 0:02:01.8]} 20. c5 {[%clk 0:02:16.7]} 20... Nf6 {[%clk 0:01:36.7]}
21. Nxf6+ {[%clk 0:02:15]} 21... gxf6 {[%clk 0:01:36.3]} 22. c6 {[%clk
0:02:15.9]} 22... b6 {[%clk 0:01:36]} 23. Rfd1 {[%clk 0:02:15.2]} 23... Rfd8
{[%clk 0:01:33.9]} 24. Rd7 {[%clk 0:02:15.2]} 24... Rac8 {[%clk 0:01:24.8]} 25.
Rcd1 {[%clk 0:02:14.5]} 25... Rxd7 {[%clk 0:01:25.2]} 26. cxd7 {[%clk
0:02:07.7]} 26... Rd8 {[%clk 0:01:24.7]} 27. h4 {[%clk 0:02:08.2]} 27... Kh7
{[%clk 0:01:10.1]} 28. g4 {[%clk 0:02:07.9]} 28... Kg6 {[%clk 0:01:10]} 29. Kg2
{[%clk 0:02:08]} 29... f5 {[%clk 0:01:08]} 30. gxf5+ {[%clk 0:02:06.4]} 30...
Kxf5 {[%clk 0:01:08.1]} 31. Kg3 {[%clk 0:02:06.5]} 31... Kg6 {[%clk 0:00:57.7]}
32. Rd5 {[%clk 0:01:57.8]} 32... f6 {[%clk 0:00:56.7]} 33. a4 {[%clk 0:01:53.6]}
33... a5 {[%clk 0:00:55.7]} 34. Kg4 {[%clk 0:01:49.6]} 34... f5+ {[%clk
0:00:53.3]} 35. Kg3 {[%clk 0:01:49.2]} 35... Kf6 {[%clk 0:00:48.1]} 36. f4
{[%clk 0:01:42.9]} 36... e4 {[%clk 0:00:45.8]} 37. h5 {[%clk 0:01:42.5]} 37...
Ke6 {[%clk 0:00:29.7]} 38. Re5+ {[%clk 0:01:39.2]} 38... Kf6 {[%clk 0:00:29.7]}
39. Rd5 {[%clk 0:01:33.4]} 39... Ke6 {[%clk 0:00:29.8]} 40. Re5+ {[%clk
0:01:33.3]} 40... Kf6 {[%clk 0:00:29.8]} 41. Rd5 {[%clk 0:01:33.4]} 1/2-1/2

[Event "Early-Titled-Tuesday-Blitz-September-26-2023"]
[Site "Chess.com"]
[Date "2023.09.26"]
[Round "9"]
[White "FlemingA"]
[Black "invisible_s0ul"]
[Result "1-0"]
[WhiteElo "2436"]
[BlackElo "2314"]
[TimeControl "180+1"]
[EndTime "9:44:01 PDT"]
[Termination "FlemingA won by resignation"]

1. g3 {[%clk 0:02:58.6]} 1... d5 {[%clk 0:02:43.1]} 2. Bg2 {[%clk 0:02:57.9]}
2... c5 {[%clk 0:02:43.1]} 3. c4 {[%clk 0:02:57]} 3... d4 {[%clk 0:02:41.2]} 4.
b4 {[%clk 0:02:57.1]} 4... e5 {[%clk 0:02:38.2]} 5. bxc5 {[%clk 0:02:50.1]} 5...
Bxc5 {[%clk 0:02:39.1]} 6. d3 {[%clk 0:02:50.8]} 6... Ne7 {[%clk 0:02:35.3]} 7.
Nf3 {[%clk 0:02:50.8]} 7... Nbc6 {[%clk 0:02:34.2]} 8. O-O {[%clk 0:02:49.1]}
8... O-O {[%clk 0:02:34.7]} 9. Nbd2 {[%clk 0:02:48]} 9... Rb8 {[%clk 0:02:22.2]}
10. Nb3 {[%clk 0:02:47.8]} 10... b6 {[%clk 0:02:21.5]} 11. Rb1 {[%clk
0:02:40.1]} 11... Qd6 {[%clk 0:02:13]} 12. Nfd2 {[%clk 0:02:33.7]} 12... f5
{[%clk 0:02:09.7]} 13. Nxc5 {[%clk 0:02:29.4]} 13... bxc5 {[%clk 0:02:00.6]} 14.
Rxb8 {[%clk 0:02:30.3]} 14... Nxb8 {[%clk 0:02:01.1]} 15. Nb3 {[%clk 0:02:21.2]}
15... Be6 {[%clk 0:01:57.6]} 16. f4 {[%clk 0:02:15]} 16... e4 {[%clk 0:01:47.8]}
17. Ba3 {[%clk 0:02:02.7]} 17... Nd7 {[%clk 0:01:46.6]} 18. Qd2 {[%clk
0:02:00.6]} 18... Nc6 {[%clk 0:01:28.1]} 19. Qc2 {[%clk 0:01:24.2]} 19... exd3
{[%clk 0:00:49.6]} 20. exd3 {[%clk 0:01:24.1]} 20... Nb4 {[%clk 0:00:50.3]} 21.
Bxb4 {[%clk 0:01:23.8]} 21... cxb4 {[%clk 0:00:51.2]} 22. c5 {[%clk 0:01:21.5]}
22... Rc8 {[%clk 0:00:31]} 23. cxd6 {[%clk 0:01:08.7]} 23... Rxc2 {[%clk
0:00:31.9]} 24. Nxd4 {[%clk 0:01:09.2]} 24... Rxa2 {[%clk 0:00:29.1]} 25. Nxe6
{[%clk 0:01:07.5]} 25... b3 {[%clk 0:00:20.3]} 26. Nd4 {[%clk 0:01:05.7]} 26...
b2 {[%clk 0:00:20]} 27. Bd5+ {[%clk 0:01:05.5]} 1-0

[Event "Early-Titled-Tuesday-Blitz-September-26-2023"]
[Site "Chess.com"]
[Date "2023.09.26"]
[Round "9"]
[White "MITerryble"]
[Black "DonkyDonkyDonkey"]
[Result "1-0"]
[WhiteElo "2951"]
[BlackElo "2756"]
[TimeControl "180+1"]
[EndTime "9:44:04 PDT"]
[Termination "MITerryble won by resignation"]

1. d4 {[%clk 0:02:58.9]} 1... Nf6 {[%clk 0:02:58.5]} 2. Nf3 {[%clk 0:02:59.5]}
2... g6 {[%clk 0:02:54.6]} 3. Bg5 {[%clk 0:02:59.2]} 3... Bg7 {[%clk 0:02:54.5]}
4. c3 {[%clk 0:02:59.5]} 4... O-O {[%clk 0:02:54.3]} 5. Nbd2 {[%clk 0:03:00.2]}
5... d5 {[%clk 0:02:54.2]} 6. e3 {[%clk 0:03:00.4]} 6... b6 {[%clk 0:02:54.1]}
7. Be2 {[%clk 0:02:59.5]} 7... c5 {[%clk 0:02:54.1]} 8. a4 {[%clk 0:02:58.5]}
8... Nc6 {[%clk 0:02:48.1]} 9. O-O {[%clk 0:02:55.8]} 9... Bb7 {[%clk
0:02:46.3]} 10. Qb3 {[%clk 0:02:43.7]} 10... Qc7 {[%clk 0:02:27.7]} 11. Bf4
{[%clk 0:02:42.2]} 11... Qc8 {[%clk 0:02:28.1]} 12. Qa3 {[%clk 0:02:36.6]} 12...
Nd7 {[%clk 0:02:25]} 13. a5 {[%clk 0:02:29.4]} 13... bxa5 {[%clk 0:02:06.5]} 14.
dxc5 {[%clk 0:02:28.4]} 14... e5 {[%clk 0:02:06.3]} 15. Bg3 {[%clk 0:02:28.4]}
15... Re8 {[%clk 0:01:53.8]} 16. Nb3 {[%clk 0:02:27]} 16... Bf8 {[%clk
0:01:43.4]} 17. Rfd1 {[%clk 0:02:25.5]} 17... e4 {[%clk 0:00:41.5]} 18. Nfd4
{[%clk 0:02:21.3]} 18... Nde5 {[%clk 0:00:41.6]} 19. Nb5 {[%clk 0:02:19.2]}
19... Ba6 {[%clk 0:00:36.6]} 20. Nxa5 {[%clk 0:02:04.2]} 20... Nxa5 {[%clk
0:00:20.4]} 21. Qxa5 {[%clk 0:02:03.3]} 21... Bb7 {[%clk 0:00:20.7]} 22. Nc7
{[%clk 0:01:49.9]} 22... Nc6 {[%clk 0:00:20.6]} 23. Qa3 {[%clk 0:01:42]} 23...
a6 {[%clk 0:00:14.2]} 24. Nxd5 {[%clk 0:01:29.4]} 24... Qf5 {[%clk 0:00:04.4]}
25. Nc7 {[%clk 0:01:26.9]} 25... Bxc5 {[%clk 0:00:04.7]} 26. b4 {[%clk
0:01:27.3]} 26... Bb6 {[%clk 0:00:04.7]} 27. Nxa8 {[%clk 0:01:26.9]} 27... Rxa8
{[%clk 0:00:05.6]} 28. Qb3 {[%clk 0:01:27.1]} 28... Ne5 {[%clk 0:00:05.9]} 29.
Bxe5 {[%clk 0:01:25.7]} 29... Qxe5 {[%clk 0:00:06.8]} 30. Rd7 {[%clk 0:01:26.3]}
30... Bc6 {[%clk 0:00:07]} 31. Qxf7+ {[%clk 0:01:26]} 1-0

[Event "Early-Titled-Tuesday-Blitz-September-26-2023"]
[Site "Chess.com"]
[Date "2023.09.26"]
[Round "9"]
[White "UK_23"]
[Black "pinguino120"]
[Result "1-0"]
[WhiteElo "2412"]
[BlackElo "2227"]
[TimeControl "180+1"]
[EndTime "9:44:24 PDT"]
[Termination "UK_23 won by checkmate"]

1. e4 {[%clk 0:03:00.9]} 1... c5 {[%clk 0:02:59.7]} 2. Nf3 {[%clk 0:03:00.8]}
2... a6 {[%clk 0:02:57.3]} 3. g3 {[%clk 0:02:58]} 3... b5 {[%clk 0:02:53.5]} 4.
Bg2 {[%clk 0:02:57.9]} 4... Bb7 {[%clk 0:02:54]} 5. Qe2 {[%clk 0:02:58]} 5... e6
{[%clk 0:02:53.8]} 6. O-O {[%clk 0:02:58.1]} 6... Be7 {[%clk 0:02:47.8]} 7. e5
{[%clk 0:02:54.3]} 7... d6 {[%clk 0:02:47.1]} 8. exd6 {[%clk 0:02:54]} 8... Qxd6
{[%clk 0:02:45.4]} 9. d3 {[%clk 0:02:53.4]} 9... Nc6 {[%clk 0:02:43.5]} 10. Nbd2
{[%clk 0:02:51]} 10... Nf6 {[%clk 0:02:40.4]} 11. a4 {[%clk 0:02:49.1]} 11...
O-O {[%clk 0:02:37.6]} 12. Re1 {[%clk 0:02:38.9]} 12... Qd7 {[%clk 0:02:17]} 13.
b3 {[%clk 0:02:28.8]} 13... Nd4 {[%clk 0:01:59.4]} 14. Qd1 {[%clk 0:02:20.3]}
14... Nd5 {[%clk 0:01:40.6]} 15. Nxd4 {[%clk 0:02:13.2]} 15... cxd4 {[%clk
0:01:31.1]} 16. Bb2 {[%clk 0:02:09]} 16... Nc3 {[%clk 0:01:25]} 17. Bxc3 {[%clk
0:02:09]} 17... dxc3 {[%clk 0:01:22.8]} 18. Ne4 {[%clk 0:02:08.7]} 18... b4
{[%clk 0:01:22.5]} 19. a5 {[%clk 0:02:05.6]} 19... Qd5 {[%clk 0:01:18.8]} 20.
Nf6+ {[%clk 0:02:04]} 20... Bxf6 {[%clk 0:01:15.7]} 21. Bxd5 {[%clk 0:02:04.6]}
21... Bxd5 {[%clk 0:01:16.6]} 22. Ra4 {[%clk 0:02:02.1]} 22... Rab8 {[%clk
0:01:14.8]} 23. Qg4 {[%clk 0:02:01.2]} 23... Be7 {[%clk 0:01:09.4]} 24. h4
{[%clk 0:01:54.9]} 24... f5 {[%clk 0:01:09.2]} 25. Qe2 {[%clk 0:01:52.7]} 25...
Rb5 {[%clk 0:01:04.5]} 26. h5 {[%clk 0:01:47.6]} 26... f4 {[%clk 0:01:02.6]} 27.
g4 {[%clk 0:01:45.6]} 27... f3 {[%clk 0:01:01.5]} 28. Qe3 {[%clk 0:01:42.4]}
28... Bc5 {[%clk 0:00:57.8]} 29. d4 {[%clk 0:01:42]} 29... Bd6 {[%clk
0:00:55.4]} 30. Qd3 {[%clk 0:01:38.7]} 30... Rf4 {[%clk 0:00:52.7]} 31. Re3
{[%clk 0:01:32.7]} 31... Rxg4+ {[%clk 0:00:52.8]} 32. Kf1 {[%clk 0:01:32.5]}
32... Rh4 {[%clk 0:00:45]} 33. Rxf3 {[%clk 0:01:32.9]} 33... Bxf3 {[%clk
0:00:44.8]} 34. Qxf3 {[%clk 0:01:33.6]} 34... Rf4 {[%clk 0:00:45.4]} 35. Qa8+
{[%clk 0:01:31.1]} 35... Kf7 {[%clk 0:00:43.2]} 36. Qxa6 {[%clk 0:01:31.8]}
36... Rxh5 {[%clk 0:00:42.3]} 37. Qxd6 {[%clk 0:01:30.9]} 37... Re4 {[%clk
0:00:41.1]} 38. a6 {[%clk 0:01:11.9]} 38... Rd5 {[%clk 0:00:40.6]} 39. Qc7+
{[%clk 0:01:10.6]} 39... Kf6 {[%clk 0:00:40.8]} 40. a7 {[%clk 0:01:10.2]} 40...
Rdxd4 {[%clk 0:00:41]} 41. a8=Q {[%clk 0:01:07]} 41... Rd1+ {[%clk 0:00:41.2]}
42. Kg2 {[%clk 0:01:07.7]} 42... Rg4+ {[%clk 0:00:41.9]} 43. Qg3 {[%clk
0:01:08.3]} 43... Rxg3+ {[%clk 0:00:40.6]} 44. Kxg3 {[%clk 0:01:09.2]} 44...
Rg1+ {[%clk 0:00:40]} 45. Kf3 {[%clk 0:01:09.6]} 45... Rd1 {[%clk 0:00:39.7]}
46. Qf8+ {[%clk 0:01:09.5]} 46... Kg6 {[%clk 0:00:39.6]} 47. Rxb4 {[%clk
0:01:10.4]} 47... Rd2 {[%clk 0:00:39.1]} 48. Rg4+ {[%clk 0:01:10.3]} 48... Kh6
{[%clk 0:00:38.9]} 49. Qf4+ {[%clk 0:01:10.2]} 49... g5 {[%clk 0:00:38.6]} 50.
Qxg5# {[%clk 0:01:10.3]} 1-0

[Event "Early-Titled-Tuesday-Blitz-September-26-2023"]
[Site "Chess.com"]
[Date "2023.09.26"]
[Round "9"]
[White "LeoWin2012"]
[Black "infinitegiantkiller"]
[Result "1-0"]
[WhiteElo "2338"]
[BlackElo "2433"]
[TimeControl "180+1"]
[EndTime "9:44:27 PDT"]
[Termination "LeoWin2012 won by resignation"]

1. Nf3 {[%clk 0:03:00.8]} 1... Nf6 {[%clk 0:02:49.3]} 2. g3 {[%clk 0:02:59.7]}
2... g6 {[%clk 0:02:50.2]} 3. Bg2 {[%clk 0:02:59.8]} 3... Bg7 {[%clk 0:02:51.1]}
4. O-O {[%clk 0:03:00]} 4... O-O {[%clk 0:02:52]} 5. d4 {[%clk 0:03:00.3]} 5...
d5 {[%clk 0:02:52.7]} 6. Nbd2 {[%clk 0:02:58.4]} 6... b6 {[%clk 0:02:52.8]} 7.
b3 {[%clk 0:02:58.4]} 7... Bb7 {[%clk 0:02:52.5]} 8. Bb2 {[%clk 0:02:58.7]} 8...
Nbd7 {[%clk 0:02:53.3]} 9. Ne5 {[%clk 0:02:55.6]} 9... e6 {[%clk 0:02:49.8]} 10.
Re1 {[%clk 0:02:52.8]} 10... c5 {[%clk 0:02:49.2]} 11. c4 {[%clk 0:02:51]} 11...
cxd4 {[%clk 0:02:49.2]} 12. Bxd4 {[%clk 0:02:48.5]} 12... Nc5 {[%clk 0:02:13.3]}
13. cxd5 {[%clk 0:02:38.2]} 13... Bxd5 {[%clk 0:02:14.2]} 14. Ndc4 {[%clk
0:02:32.2]} 14... Bxg2 {[%clk 0:02:13.3]} 15. Kxg2 {[%clk 0:02:33.1]} 15... Qd5+
{[%clk 0:02:09.6]} 16. Kg1 {[%clk 0:02:31.4]} 16... Rfd8 {[%clk 0:02:09.4]} 17.
Bb2 {[%clk 0:02:23.1]} 17... Qb7 {[%clk 0:01:39.4]} 18. Qc2 {[%clk 0:02:21.4]}
18... Rac8 {[%clk 0:01:39.1]} 19. Rad1 {[%clk 0:02:19.5]} 19... Ncd7 {[%clk
0:01:38.7]} 20. Nxd7 {[%clk 0:02:17.7]} 20... Rxd7 {[%clk 0:01:36.8]} 21. Rxd7
{[%clk 0:02:13.2]} 21... Qxd7 {[%clk 0:01:36.2]} 22. Rd1 {[%clk 0:02:10.1]}
22... Qc6 {[%clk 0:01:35.5]} 23. Qd3 {[%clk 0:02:00]} 23... Nd5 {[%clk
0:01:23.9]} 24. Bxg7 {[%clk 0:01:57.4]} 24... Kxg7 {[%clk 0:01:24.8]} 25. Qd4+
{[%clk 0:01:52.7]} 25... Kg8 {[%clk 0:01:24.7]} 26. e4 {[%clk 0:01:45.3]} 26...
Ne7 {[%clk 0:01:01.5]} 27. Qf6 {[%clk 0:01:09.3]} 27... Qc7 {[%clk 0:00:52.8]}
28. Ne5 {[%clk 0:01:00.4]} 28... Nc6 {[%clk 0:00:43.8]} 29. Rd7 {[%clk 0:00:46]}
29... Nxe5 {[%clk 0:00:26.4]} 30. Rxc7 {[%clk 0:00:44.8]} 30... Rxc7 {[%clk
0:00:26.8]} 31. Qd8+ {[%clk 0:00:44.3]} 31... Kg7 {[%clk 0:00:25.3]} 32. Qxc7
{[%clk 0:00:45.2]} 1-0

[Event "Early-Titled-Tuesday-Blitz-September-26-2023"]
[Site "Chess.com"]
[Date "2023.09.26"]
[Round "9"]
[White "Mr_Lion22"]
[Black "TregubovP"]
[Result "1-0"]
[WhiteElo "2494"]
[BlackElo "2622"]
[TimeControl "180+1"]
[EndTime "9:44:32 PDT"]
[Termination "Mr_Lion22 won by resignation"]

1. d4 {[%clk 0:02:55.5]} 1... Nf6 {[%clk 0:02:59.2]} 2. c4 {[%clk 0:02:56.2]}
2... e6 {[%clk 0:02:59.5]} 3. Nc3 {[%clk 0:02:56]} 3... Bb4 {[%clk 0:02:59.3]}
4. f3 {[%clk 0:02:56.6]} 4... c5 {[%clk 0:02:53.4]} 5. d5 {[%clk 0:02:56.8]}
5... d6 {[%clk 0:02:53.3]} 6. e4 {[%clk 0:02:57.1]} 6... O-O {[%clk 0:02:53.5]}
7. Ne2 {[%clk 0:02:57.1]} 7... b5 {[%clk 0:02:54.1]} 8. a3 {[%clk 0:02:49.8]}
8... Ba5 {[%clk 0:02:51.8]} 9. Ng3 {[%clk 0:02:39.6]} 9... bxc4 {[%clk 0:02:34]}
10. Bxc4 {[%clk 0:02:39.7]} 10... exd5 {[%clk 0:02:28.3]} 11. exd5 {[%clk
0:02:40.6]} 11... Re8+ {[%clk 0:02:24]} 12. Kf2 {[%clk 0:02:41.1]} 12... Nbd7
{[%clk 0:02:23.5]} 13. Re1 {[%clk 0:02:39.4]} 13... Rxe1 {[%clk 0:02:19]} 14.
Qxe1 {[%clk 0:02:37.4]} 14... Nb6 {[%clk 0:02:19.6]} 15. Qe2 {[%clk 0:01:49.4]}
15... Bxc3 {[%clk 0:02:19.2]} 16. bxc3 {[%clk 0:01:50.3]} 16... Nfxd5 {[%clk
0:02:19.4]} 17. Bg5 {[%clk 0:01:46]} 17... Qd7 {[%clk 0:02:00.4]} 18. Re1 {[%clk
0:01:25.8]} 18... Bb7 {[%clk 0:01:54.8]} 19. Bb5 {[%clk 0:01:19]} 19... Nxc3
{[%clk 0:01:43.1]} 20. Bxd7 {[%clk 0:01:11.8]} 20... Nxe2 {[%clk 0:01:42.3]} 21.
Rxe2 {[%clk 0:01:12.7]} 21... Nxd7 {[%clk 0:01:41.7]} 22. Nf5 {[%clk 0:01:13.6]}
22... f6 {[%clk 0:01:24.4]} 23. Re7 {[%clk 0:01:07.9]} 23... fxg5 {[%clk
0:01:12.4]} 24. Rxd7 {[%clk 0:01:07.8]} 24... Bc8 {[%clk 0:01:00.4]} 25. Rd8+
{[%clk 0:01:06.7]} 25... Kf7 {[%clk 0:00:59.3]} 26. Rxc8 {[%clk 0:01:06.7]}
26... Rxc8 {[%clk 0:00:53.5]} 27. Nxd6+ {[%clk 0:01:07.2]} 27... Ke6 {[%clk
0:00:54.1]} 28. Nxc8 {[%clk 0:01:08.1]} 28... a5 {[%clk 0:00:54.4]} 29. Ke3
{[%clk 0:01:07.9]} 29... Kd5 {[%clk 0:00:53.9]} 30. Nb6+ {[%clk 0:01:05.5]}
30... Kc6 {[%clk 0:00:54.2]} 31. Nc4 {[%clk 0:01:04.4]} 31... Kb5 {[%clk
0:00:54.6]} 32. Kd3 {[%clk 0:01:05]} 32... Ka4 {[%clk 0:00:53.1]} 33. Kc3 {[%clk
0:01:05.5]} 33... h5 {[%clk 0:00:50.9]} 34. g3 {[%clk 0:01:00.2]} 34... Kb5
{[%clk 0:00:50.7]} 35. Kb3 {[%clk 0:00:47.7]} 35... a4+ {[%clk 0:00:48.2]} 36.
Kc3 {[%clk 0:00:48.3]} 36... Kc6 {[%clk 0:00:48.8]} 37. Nb2 {[%clk 0:00:47.8]}
37... Kb5 {[%clk 0:00:47.9]} 38. Kd3 {[%clk 0:00:44.1]} 1-0